Workbook

Sheet Folha1
E1: Penalizações | I1: Tempo
A2: CHP (Min.) | B2: Escolas | C2: Ciclos | D2: Alunos | E2: N.º resp. erradas | G2: N.º controlos ñ efetuados | I2: CHC | J2: Total parcial | K2: Total acumulado | L2: Classif
F3: 00:05:00 | H3: 00:10:00
A4: 10:19:43 | B4: EB 2,3 Caniço | C4: 3º | D4: Roberto Silva | E4: 1 | F4: =E4*$F$3 -> 00:05:00 | G4: 2 | H4: =G4*$H$3 -> 00:20:00 | I4: 0.4535648148 | J4: =I4-A4 -> 0.02320601852 | K4: =J4+F4+H4 -> 0.04056712963
D5: Fernando Caíres
A6: 10:16:00 | B6: EB 2,3 Caniço | C6: 2º | D6: Pedro Pereira | E6: 3 | F6: =E6*$F$3 -> 00:15:00 | G6: 0 | H6: =G6*$H$3 -> 00:00:00 | I6: 10:47:28 | J6: =I6-A6 -> 0.02185185185 | K6: =J6+F6+H6 -> 0.03226851852
D7: Lourenço Gonçalves
A8: 10:52:47 | B8: EBS Lucinda Andrade | C8: 3º | D8: Rute Ferreira | E8: 1 | F8: 00:05:00 | G8: 0 | H8: 00:00:00 | I8: 11:02:35 | J8: 0.006805555556 | K8: 0.01027777778 | L8: 1º
D9: Jéssica Silva
A10: 11:03:42 | B10: EBS Lucinda Andrade | C10: 2º | D10: Gonçalo Gomes | E10: 0 | F10: 00:00:00 | G10: 0 | H10: 00:00:00 | I10: 11:24:07 | J10: =I10-A10 -> 0.01417824074 | K10: 0.01417824074 | L10: 2º
D11: João Benedito
A12: 10:43:20 | B12: EB 2,3 Caniçal | C12: 3º | D12: Carlota Calaça | E12: 3 | F12: 00:15:00 | G12: 0 | H12: 00:00:00 | I12: 10:58:19 | J12: 0.01040509259 | K12: 0.02082175926
D13: Sibila Calaça
A14: 10:21:23 | B14: EB 2,3 Caniçal | C14: 2º | D14: Kevin Sousa | E14: 0 | F14: 00:00:00 | G14: 0 | H14: 00:00:00 | I14: 10:45:36 | J14: 0.01681712963 | K14: 0.01681712963
D15: Kevin Gouveia
A16: 10:17:29 | B16: Porto Sanro | C16: 3º | D16: Martim Neves | E16: 4 | F16: 00:20:00 | G16: 0 | H16: 00:00:00 | I16: 10:48:13 | J16: 0.02134259259 | K16: 0.03523148148
D17: Daniel Brito
A18: 10:59:26 | B18: Porto Santo | C18: 2º | D18: João Silva | E18: 1 | F18: 00:05:00 | G18: 1 | H18: 00:10:00 | I18: 11:19:27 | J18: 0.01390046296 | K18: 0.02431712963
D19: Eduardo Oliveira
A20: 10:40:42 | B20: EB2,3 Torre | C20: 3º | D20: Nuno Nunes | E20: 5 | F20: 00:25:00 | G20: 0 | H20: 00:00:00 | I20: 11:04:41 | J20: 0.01665509259 | K20: 0.0340162037
D21: Alexandra Silva
A22: 10:33:22 | B22: EB 2,3 Torre | C22: 2º | D22: Daniela Silva | E22: 0 | F22: 00:00:00 | G22: 0 | H22: 00:00:00 | I22: 10:52:12 | J22: 0.0130787037 | K22: 0.0130787037 | L22: 1º
D23: Ana Aguiar
A24: 11:02:28 | B24: EB 2,3 Dr. Eduardo B. Castro | C24: 3º | D24: Marco Neves | E24: 1 | F24: 00:05:00 | G24: 1 | H24: 00:10:00 | I24: 11:14:47 | J24: 0.008553240741 | K24: 0.01896990741
D25: Rúben Lucas
A26: 10:31:57 | B26: EB 2,3 Dr. Eduardo B. Castro | C26: 2º | D26: Duarte Vares | E26: 3 | F26: 00:15:00 | G26: 0 | H26: 00:00:00 | I26: 10:47:04 | J26: 0.01049768519 | K26: 0.02091435185
D27: Gonçalo Rosado
A28: 10:47:27 | B28: EB 2,3Santo António | C28: 3º | D28: Pedro Santos | E28: 5 | F28: 00:25:00 | G28: 0 | H28: 00:00:00 | I28: 11:06:08 | J28: 0.01297453704 | K28: 0.03033564815
D29: Tomás Viveiros
A30: 10:22:26 | B30: EB 2,3Santo António | C30: 2º | D30: Maria Rocha | E30: 1 | F30: 00:05:00 | G30: 0 | H30: 00:00:00 | I30: 10:39:38 | J30: 0.01194444444 | K30: 0.01541666667
D31: Natacha Silva
A32: 11:04:24 | B32: EBS Ponta Sol | C32: 3º | D32: Diva Fernandes | E32: 5 | F32: 00:25:00 | G32: 1 | H32: 00:10:00 | I32: 11:18:23 | J32: 0.009710648148 | K32: 0.0340162037
D33: Sarie Carvalho
A34: 11:02:48 | B34: EBS Ponta Sol | C34: 2º | D34: Tiago Silva | E34: 2 | F34: 00:10:00 | G34: 0 | H34: 00:00:00 | I34: 11:25:39 | J34: 0.01586805556 | K34: 0.0228125
D35: Rodrigo Nunes
A36: 10:38:01 | B36: EBS Santa Cruz | C36: 3º | D36: Miguel Ramalhosa | E36: 3 | F36: 00:15:00 | G36: 0 | H36: 00:00:00 | I36: 10:45:47 | J36: 0.005393518519 | K36: 0.01581018519
D37: Luís Guilherme Santos
A38: 10:46:19 | B38: EBS Santa Cruz | C38: 2º | D38: Armando Poeira | E38: 3 | F38: 00:15:00 | G38: 0 | H38: 00:00:00 | I38: 11:09:00 | J38: 0.01575231481 | K38: 0.02616898148
D39: Eduardo Perestrelo
A40: 10:36:26 | B40: EBS Dr. Ângelo A. da Silva | C40: 3º | D40: Rodrigo Abreu | E40: 2 | F40: 00:10:00 | G40: 0 | H40: 00:00:00 | I40: 10:46:50 | J40: 0.007222222222 | K40: 0.01416666667
D41: Diogo Andrade
A42: 10:23:25 | B42: EBS Dr. Ângelo A. da Silva | C42: 2º | D42: João Abreu | E42: 3 | F42: 00:15:00 | G42: 0 | H42: 00:00:00 | I42: 10:42:45 | J42: 0.01342592593 | K42: 0.02384259259
D43: Afonso Gama
A44: 10:48:01 | B44: EBS Dr. Luís M.S. Dantas | C44: 3º | D44: Fernando Araújo | E44: 3 | F44: 00:15:00 | G44: 0 | H44: 00:00:00 | I44: 11:02:51 | J44: 0.01030092593 | K44: 0.02071759259
D45: Francisco José
A46: 10:41:58 | B46: EBS Dr. Luís M.S. Dantas | C46: 2º | D46: Laura Pereira | E46: 2 | F46: 00:10:00 | G46: 3 | H46: 00:30:00 | I46: 10:59:14 | J46: 0.01199074074 | K46: 0.03976851852
D47: Ricardo Santos
A48: 11:03:14 | B48: EBS Bispo D. Manuel F. Cabral | C48: 3º | D48: Ana Sofia Castro | E48: 2 | F48: 00:10:00 | G48: 0 | H48: 00:00:00 | I48: 11:26:27 | J48: 0.01612268519 | K48: 0.02306712963
D49: Cláudia Freitas
A50: 10:47:42 | B50: EBS Bispo D. Manuel F. Cabral | C50: 2º | D50: Filipa Silva | E50: 2 | F50: 00:10:00 | G50: 0 | H50: 00:00:00 | I50: 11:10:11 | J50: 0.01561342593 | K50: 0.02255787037
D51: Sofia Luís
A52: 10:20:53 | B52: EB 2,3 dos Louros | C52: 3º | D52: Hélder Rodrigues | E52: 3 | F52: 00:15:00 | G52: 1 | H52: 00:10:00 | I52: 10:36:03 | J52: =I52-A52 -> 0.01053240741 | K52: 0.02789351852
D53: Marco Sousa
A54: 10:19:09 | B54: EB 2,3 dos Louros | C54: 2º | D54: David Nicolau | E54: 2 | F54: 00:10:00 | G54: 0 | H54: 00:00:00 | I54: 10:35:59 | J54: 0.01168981481 | K54: 0.01863425926
D55: Daniela Pozneacov
A56: 10:21:55 | B56: EBS Calheta | C56: 3º | D56: Idalina Freitas | E56: 1 | F56: 00:05:00 | G56: 0 | H56: 00:00:00 | I56: 10:37:16 | J56: 0.01065972222 | K56: 0.01413194444
D57: João Freitas
A58: 10:48:19 | B58: EBS Calheta | C58: 2º | D58: Tiago Jesus | E58: 1 | F58: 00:05:00 | G58: 0 | H58: 00:00:00 | I58: 11:04:01 | J58: 0.01090277778 | K58: 0.014375 | L58: 3º
D59: Franco Gonçalves
A60: 10:18:30 | B60: EB 2,3 Prof Francisco M. S. Barreto | C60: 3º | D60: Vitor Nascimento | E60: 5 | F60: 00:25:00 | G60: 1 | H60: 00:10:00 | I60: 10:32:50 | J60: 0.009953703704 | K60: 0.03425925926
D61: Luís Pombo
A62: 10:14:38 | B62: EB 2,3 Prof Francisco M. S. Barreto | C62: 2º | D62: João Macedo | E62: 1 | F62: 00:05:00 | G62: 0 | H62: 00:00:00 | I62: 10:31:56 | J62: 0.01201388889 | K62: 0.01548611111
D63: Artur Jardim
A65: 10:29:11 | B65: EB 2,3 Cónego JJG Andrade | C65: 3º | D65: André Batata | E65: 10 | F65: 00:50:00 | G65: 0 | H65: 00:00:00 | I65: 10:41:29 | J65: 0.008541666667 | K65: 0.04326388889
D66: João Fernandes
A67: 10:58:03 | B67: EB 2,3 Cónego JJG Andrade | C67: 2º | D67: João Frias | E67: 3 | F67: 00:15:00 | G67: 0 | H67: 00:00:00 | I67: 11:10:49 | J67: 0.008865740741 | K67: 0.01928240741
D68: Jorge Ferreira
A69: 10:46:37 | B69: EB 2,3 Bartolomeu Perestrelo | C69: 3º | D69: Luís Rosário | E69: 2 | F69: =E69*$F$3 -> 00:10:00 | G69: 0 | H69: 00:00:00 | I69: 10:56:34 | J69: 0.006909722222 | K69: 0.01385416667 | L69: 3º
D70: Denise Câmara
A71: 10:37:42 | B71: EB 2,3 Bartolomeu Perestrelo | C71: 2º | D71: Rodrigo Neves | E71: 3 | F71: 00:15:00 | G71: 0 | H71: =G71*$H$3 -> 00:00:00 | I71: 10:57:36 | J71: =I71-A71 -> 0.01381944444 | K71: =J71+F71+H71 -> 0.02423611111
D72: Tiago Aguiar
A73: 00:00:00 | B73: EB 2,3 Cardeal Dom Teodósio Gouveia | C73: 3º | D73: Não Vieram | E73: 0 | F73: 00:00:00 | G73: 0 | H73: 00:00:00 | I73: 00:00:00 | J73: 0 | K73: 0
A75: 10:47:05 | B75: EB 2,3 Cardeal Dom Teodósio Gouveia | C75: 2º | D75: Rosana Luís | E75: 0 | F75: 00:00:00 | G75: 0 | H75: 00:00:00 | I75: 11:14:02 | J75: 0.01871527778 | K75: 0.01871527778
D76: Paula Teixeira
A77: 10:59:48 | B77: EB 2,3 Estreito Câ. Lobos | C77: 3º | D77: José Ricardo Vieira | E77: 5 | F77: 00:25:00 | G77: 0 | H77: 00:00:00 | I77: 11:18:25 | J77: 0.01292824074 | K77: 0.03028935185
D78: José Tiago Gonçalves
A79: 10:49:00 | B79: EB 2,3 Estreito Câ. Lobos | C79: 2º | D79: Fátima Soares | E79: 3 | F79: 00:15:00 | G79: 0 | H79: 00:00:00 | I79: 11:10:33 | J79: 0.01496527778 | K79: 0.02538194444
D80: Pedro Pestana
A81: 10:15:14 | B81: EBS Gonçalves Zarco | C81: 3º | D81: António Tremura | E81: 4 | F81: 00:20:00 | G81: 0 | H81: 00:00:00 | I81: 10:34:10 | J81: 0.01314814815 | K81: 0.02703703704
D82: Rúben Jesus
A83: 11:15:00 | B83: EBS Gonçalves Zarco | C83: 2º | D83: João Olim | E83: 1 | F83: 00:05:00 | G83: 2 | H83: 00:20:00 | I83: 11:29:00 | J83: =I83-A83 -> 0.009722222222 | K83: 0.02708333333
D84: Guilherme Vieira
A85: 11:05:09 | B85: Colégio Infante D. Henrique | C85: 3º | D85: Tomás Henrique | E85: 6 | F85: 00:30:00 | G85: 1 | H85: 00:10:00 | I85: 11:15:58 | J85: =I85-A85 -> 0.007511574074 | K85: 0.03528935185
D86: João Henrique
A87: 10:36:55 | B87: Colégio Infante D. Henrique | C87: 2º | D87: Joana Ferreira | E87: 2 | F87: 00:10:00 | G87: 0 | H87: 00:00:00 | I87: 10:54:46 | J87: 0.01239583333 | K87: 0.01934027778
D88: Rodrigo Pereira
A89: 10:34:44 | B89: EB 2, 3 Curral das Freiras | C89: 3º | D89: Carlos Santos | E89: 2 | F89: 00:10:00 | G89: 0 | H89: 00:00:00 | I89: 10:47:13 | J89: 0.008668981481 | K89: 0.01561342593
D90: Gonçalo Castro
A91: 10:40:11 | B91: EB 2, 3 Curral das Freiras | C91: 2º | D91: Diogo Faria | E91: 2 | F91: 00:10:00 | G91: 0 | H91: 00:00:00 | I91: 10:59:03 | J91: 0.01310185185 | K91: 0.0200462963
D92: Vitória Vieira
A93: 10:16:36 | B93: EB 2,3 Dr. Horácio Bento Gouveia | C93: 3º | D93: Joana Gouveia | E93: 3 | F93: 00:15:00 | G93: 0 | H93: 00:00:00 | I93: 10:31:25 | J93: =I93-A93 -> 0.01028935185 | K93: 0.02070601852
D94: Margarida Catanho
A95: 10:18:05 | B95: EB 2,3 Dr. Horácio Bento Gouveia | C95: 2º | D95: João Rodrigues | E95: 1 | F95: 00:05:00 | G95: 0 | H95: 00:00:00 | I95: 10:35:13 | J95: 0.01189814815 | K95: 0.01537037037
D96: András Juhász
A98: 10:22:55 | B98: EBS Padre Manuel Álvares Pereira | C98: 3º | D98: Carolina Aguiar | E98: 3 | F98: 00:15:00 | G98: 0 | H98: 00:00:00 | I98: 10:37:26 | J98: 0.01008101852 | K98: 0.02049768519
D99: Filipe Caldeira
A100: 10:57:02 | B100: EBS Padre Manuel Álvares Pereira | C100: 2º | D100: Artur Ramos | E100: 5 | F100: 00:25:00 | G100: 0 | H100: 00:00:00 | I100: 11:16:18 | J100: 0.01337962963 | K100: 0.03074074074
D101: Rodrigo Faria da Corte
A102: 10:55:17 | B102: EB 1,2,3 Porto Cruz | C102: 3º | D102: Paulo Jesus | E102: 2 | F102: 00:10:00 | G102: 0 | H102: 00:00:00 | I102: 11:02:23 | J102: 0.004930555556 | K102: 0.011875 | L102: 2º
D103: Adriano Fernandes
A104: 10:53:36 | B104: EB 1,2,3 Porto Cruz | C104: 2º | D104: Ana Sousa | E104: 4 | F104: 00:20:00 | G104: 0 | H104: 00:00:00 | I104: 11:10:21 | J104: 0.01163194444 | K104: 0.02552083333
D105: André Sousa
A106: 10:32:50 | B106: EBS Machico | C106: 3º | D106: Nuno Rodrigues | E106: 3 | F106: 00:15:00 | G106: 0 | H106: 00:00:00 | I106: 10:46:27 | J106: 0.009456018519 | K106: 0.01987268519
D107: João Pedro
A108: 10:20:25 | B108: EBS Machico | C108: 2º | D108: Manuel Vieira | E108: 2 | F108: 00:10:00 | G108: 1 | H108: 00:10:00 | I108: 10:40:11 | J108: 0.01372685185 | K108: 0.02761574074
D109: Tiago João
A110: 10:58:41 | B110: EB 2,3 Alfredo N. Ferreira Júnior | C110: 3º | D110: Pedro Rodrigues | E110: 3 | F110: 00:15:00 | G110: 0 | H110: 00:00:00 | I110: 11:20:39 | J110: 0.01525462963 | K110: 0.0256712963
D111: Vítor Teixeira
A112: 10:35:44 | B112: EB 2,3 Alfredo N. Ferreira Júnior | C112: 2º | D112: Diogo André | E112: 2 | F112: =E112*$F$3 -> 00:10:00 | G112: 0 | H112: 00:00:00 | I112: 11:02:07 | J112: 0.01832175926 | K112: 0.0252662037
D113: Emanuel Fernandes
A114: CHP | E114: Respostas | G114: Postos | I114: CHC

Sheet alunos

Sheet Folha3
